bitfinex-derivatives/quotes_BTCF0:USTF0_20241122
["timestamp","ask_amount","ask_price","bid_price","bid_amount"]
[1732273379892,0.050875,98215.0,98208.0,0.050879]
[1732273380103,0.3608,98218.0,98198.0,0.3608]
[1732273380305,0.411674,98218.0,98211.0,0.050877]
[1732273380503,0.050875,98216.0,98211.0,0.050877]
[1732273381107,0.3608,98218.0,98211.0,0.050877]
[1732273381297,0.3608,98218.0,98207.0,0.3608]
[1732273381499,0.0102,98220.0,98217.0,0.3608]
[1732273381808,0.0102,98230.0,98229.0,0.050868]
[1732273382006,0.0024,98244.0,98241.0,0.040662]
[1732273382801,0.0024,98244.0,98241.0,0.346022]
[1732273383001,0.3655,98260.0,98250.0,0.050857]
[1732273383311,0.0305,98270.0,98250.0,0.050857]
[1732273383312,0.09944,98270.0,98250.0,0.66616]
[1732273383608,0.00152692,98278.0,98263.0,0.3608]
[1732273383804,0.10096692,98278.0,98268.0,0.11901025]
[1732273384009,0.00152692,98278.0,98277.0,0.050843]
[1732273384401,0.66756692,98278.0,98277.0,4.659e-05]
[1732273384602,0.36232692,98278.0,98252.0,0.0051]
[1732273384797,0.3608,98262.0,98247.0,0.3608]
[1732273385000,0.3608,98262.0,98255.0,4.659e-05]
[1732273385202,0.050854,98256.0,98247.0,0.3608]
[1732273385604,0.050854,98256.0,98248.0,0.050858]
[1732273385805,0.050854,98256.0,98247.0,0.3608]
[1732273386005,0.050854,98256.0,98242.0,0.411661]
[1732273386314,0.050854,98256.0,98245.0,0.050859]
[1732273386503,0.050854,98256.0,98246.0,0.050859]
[1732273386697,0.050854,98256.0,98242.0,0.3608]
[1732273387304,0.050854,98256.0,98242.0,0.411661]
[1732273387612,0.050854,98256.0,98243.0,0.05086]
[1732273388007,0.050854,98256.0,98238.0,0.0318]
[1732273388211,0.050854,98256.0,98245.0,0.050859]
[1732273388603,0.050854,98256.0,98253.0,0.050855]
[1732273388906,0.3608,98258.0,98255.0,4.659e-05]
[1732273389102,0.3608,98258.0,98256.0,4.659e-05]
[1732273389304,0.3608,98258.0,98254.0,0.05238164]
[1732273389507,0.050854,98257.0,98254.0,0.00152664]
[1732273389705,0.050854,98256.0,98254.0,0.00152664]
[1732273392411,0.09944,98255.0,98254.0,0.00152664]
[1732273392715,0.09944,98255.0,98254.0,0.05238164]
[1732273392914,0.09944,98255.0,98254.0,0.00152664]
[1732273393609,0.050854,98256.0,98254.0,0.00152664]
[1732273393814,0.09944,98255.0,98254.0,0.00152664]
[1732273395815,0.13284,98255.0,98254.0,0.00152664]
[1732273397214,0.49364,98255.0,98254.0,0.00152664]
[1732273397711,0.49364,98255.0,98254.0,0.00157323]
[1732273398105,0.49364,98255.0,98254.0,0.00152664]
[1732273398513,0.05086,98244.0,98243.0,0.0102]
[1732273398720,0.050866,98233.0,98232.0,0.0102]
[1732273398909,0.05087,98225.0,98224.0,0.05087]
[1732273401117,0.050867,98231.0,98221.0,0.00152693]
[1732273401319,0.09944,98234.0,98225.0,0.05087]
[1732273401613,0.09944,98234.0,98221.0,0.00152693]
[1732273401614,0.050867,98231.0,98227.0,0.050869]
[1732273401809,0.050867,98231.0,98228.0,4.659e-05]
[1732273402007,0.050868,98229.0,98227.0,0.050869]
[1732273402209,0.1497415,98234.0,98231.0,0.050867]
[1732273402416,0.1497415,98234.0,98221.0,0.01172693]
[1732273402720,0.1497415,98234.0,98228.0,0.050868]
[1732273403126,0.2006065,98234.0,98228.0,0.050868]
[1732273403316,0.1497415,98234.0,98233.0,0.050866]
[1732273404211,0.0503015,98234.0,98233.0,0.050866]
[1732273404410,0.38165835,98244.0,98231.0,0.3608]
[1732273404611,0.0047,98249.0,98239.0,0.3608]
[1732273404923,0.02033834,98248.0,98247.0,0.050859]
[1732273405110,0.050852,98260.0,98241.0,0.050862]
[1732273405314,0.0047,98261.0,98252.0,0.050856]
[1732273405315,0.09944,98253.0,98252.0,0.050856]
[1732273405521,0.09944,98258.0,98256.0,0.050854]
[1732273406225,0.3608,98265.0,98264.0,0.05085]
[1732273406525,0.51095873,98265.0,98264.0,0.05085]
[1732273406819,0.3608,98265.0,98264.0,0.05085]
[1732273407322,0.3608,98265.0,98262.0,0.05085]
[1732273407524,0.050851,98262.0,98256.0,0.0315]
[1732273407712,0.3608,98265.0,98256.0,0.0315]
[1732273407913,0.050852,98260.0,98256.0,0.0315]
[1732273408122,0.3608,98265.0,98256.0,0.0315]
[1732273408517,0.3608,98265.0,98263.0,0.05085]
[1732273408823,0.3608,98265.0,98264.0,0.0633]
[1732273409231,0.3608,98265.0,98264.0,0.0312]
[1732273409421,0.3608,98265.0,98260.0,0.050852]
[1732273409422,0.050849,98265.0,98260.0,0.050852]
[1732273409619,0.05085,98263.0,98260.0,0.050852]
[1732273410019,0.09688,98267.0,98256.0,0.0315]
[1732273410328,0.050852,98261.0,98256.0,0.0315]
[1732273410816,0.050852,98259.0,98256.0,0.0315]
[1732273411024,0.09688,98267.0,98256.0,0.0315]
[1732273411416,0.05085,98264.0,98259.0,0.050852]
[1732273411621,0.09688,98267.0,98259.0,0.050852]
[1732273411825,0.050849,98266.0,98256.0,0.0315]
[1732273412019,0.050851,98262.0,98256.0,0.0315]
[1732273412220,0.050852,98260.0,98256.0,0.082354]
[1732273412421,0.050849,98266.0,98258.0,0.050853]
[1732273412622,0.09688,98267.0,98256.0,0.0315]
[1732273412827,0.050852,98261.0,98256.0,0.0315]
[1732273413012,0.09688,98267.0,98256.0,0.0315]
[1732273413216,0.147728,98267.0,98256.0,0.0315]
[1732273413422,0.05085,98265.0,98256.0,0.082354]
[1732273413625,0.09688,98267.0,98257.0,0.050853]
[1732273413824,0.050852,98261.0,98257.0,0.050853]
[1732273414021,0.050848,98268.0,98256.0,0.0315]
[1732273414323,0.09688,98267.0,98265.0,0.050849]
[1732273415025,0.09688,98267.0,98256.0,0.0315]
[1732273415326,0.09688,98267.0,98259.0,0.050852]
[1732273415523,0.09688,98267.0,98256.0,0.0315]
[1732273415723,0.050851,98261.0,98256.0,0.0315]
[1732273415925,0.09688,98267.0,98256.0,0.0315]
[1732273416120,0.147728,98267.0,98262.0,0.050851]
[1732273416324,0.050849,98266.0,98256.0,0.0315]
[1732273416523,0.050849,98266.0,98258.0,0.050853]
[1732273417018,0.05085,98265.0,98259.0,4.659e-05]
[1732273417319,0.050851,98262.0,98256.0,0.0315]
[1732273417524,0.09688,98267.0,98250.0,0.050857]
[1732273417525,0.411654,98257.0,98250.0,0.050857]
[1732273417733,0.3608,98257.0,98250.0,0.050857]
[1732273417927,0.3608,98257.0,98248.0,0.0317]
[1732273418236,0.3608,98257.0,98254.0,0.050855]
[1732273418422,0.050852,98260.0,98254.0,0.050855]
[1732273418617,0.44350901,98266.0,98257.0,0.050853]
[1732273418822,0.411649,98266.0,98259.0,0.050852]
[1732273419025,0.3608,98266.0,98250.0,0.0102]
[1732273419233,0.05085,98263.0,98254.0,0.050855]
[1732273419421,0.05085,98263.0,98255.0,0.050854]
[1732273419932,0.05085,98263.0,98250.0,0.0102]
[1732273420428,0.05085,98263.0,98252.0,0.050856]
[1732273420623,0.05085,98263.0,98258.0,0.050853]
[1732273420926,0.02033227,98262.0,98259.0,0.050852]
[1732273421621,0.03941319,98263.0,98259.0,0.050852]
[1732273424636,0.03941319,98263.0,98260.0,0.050852]
[1732273424931,0.02033227,98261.0,98260.0,0.050852]
[1732273426122,0.3608,98267.0,98266.0,0.050849]
[1732273427125,0.14834098,98269.0,98268.0,0.050848]
[1732273427631,0.05146098,98269.0,98268.0,0.050848]
[1732273427835,0.3608,98279.0,98262.0,0.3608]
[1732273428028,0.3608,98279.0,98263.0,0.05085]
[1732273428029,0.09684,98276.0,98263.0,0.05085]
[1732273428229,0.09684,98276.0,98275.0,0.050844]
[1732273428537,0.3608,98279.0,98264.0,0.0102]
[1732273428733,0.02912568,98278.0,98276.0,0.050843]
[1732273428928,0.45764,98279.0,98278.0,0.050843]
[1732273429232,0.43255258,98279.0,98278.0,0.050843]
[1732273429623,0.37537788,98279.0,98278.0,0.050843]
[1732273429829,0.07175258,98279.0,98278.0,0.050843]
[1732273430131,0.02033227,98279.0,98278.0,0.050843]
[1732273430925,0.3608,98287.0,98283.0,0.050839]
[1732273431238,0.09684,98286.0,98283.0,0.050839]
[1732273431624,0.06507729,98286.0,98283.0,0.050839]
[1732273432034,0.06507729,98286.0,98277.0,0.082143]
[1732273432239,0.06507729,98286.0,98277.0,0.0313]
[1732273432436,0.06507729,98286.0,98279.0,0.050842]
[1732273433234,0.11591529,98286.0,98277.0,0.0313]
[1732273433433,0.11591529,98286.0,98280.0,0.050841]
[1732273433830,0.05084,98283.0,98277.0,0.0313]
[1732273434229,0.06507729,98286.0,98277.0,0.0313]
[1732273434436,0.06507729,98286.0,98280.0,0.050841]
[1732273434941,0.050839,98285.0,98282.0,0.05084]
[1732273435846,0.41295315,98287.0,98277.0,0.0313]
[1732273435847,0.41295315,98287.0,98286.0,0.050838]
[1732273436034,0.50923314,98287.0,98286.0,0.050838]
[1732273436434,0.41239314,98287.0,98286.0,0.050838]
[1732273436632,0.14843314,98287.0,98286.0,0.050838]
[1732273436827,0.04552784,98287.0,98286.0,0.050838]
[1732273437238,0.0614,98300.0,98279.0,0.3608]
[1732273437239,0.09684,98291.0,98288.0,0.050837]
[1732273437438,0.050831,98300.0,98297.0,0.050833]
[1732273437637,0.050831,98300.0,98280.0,0.050841]
[1732273437638,0.05122101,98300.0,98298.0,0.050832]
[1732273437833,0.09684,98306.0,98290.0,0.47981025]
[1732273438030,0.09684,98306.0,98303.0,0.05083]
[1732273438232,0.3608,98308.0,98303.0,0.05083]
[1732273438444,0.410842,98308.0,98303.0,0.05083]
[1732273438645,0.41136201,98308.0,98299.0,0.050831]
[1732273438833,0.050829,98304.0,98291.0,0.0313]
[1732273439147,0.41136201,98308.0,98303.0,0.050829]
[1732273439543,0.50692201,98308.0,98304.0,0.050829]
[1732273439839,0.05056201,98308.0,98307.0,0.050828]
[1732273440042,0.050042,98308.0,98307.0,0.050828]
[1732273440353,0.050042,98308.0,98296.0,0.0102]
[1732273440354,0.050826,98311.0,98296.0,0.0102]
[1732273440535,0.3608,98308.0,98305.0,0.050828]
[1732273440848,0.14746201,98313.0,98299.0,0.0307]
[1732273441147,0.14746201,98313.0,98306.0,0.050828]
[1732273441440,0.14746201,98313.0,98309.0,0.050826]
[1732273441643,0.16653191,98313.0,98309.0,0.050826]
[1732273441938,0.10272701,98313.0,98309.0,0.050826]
[1732273442631,0.10272701,98313.0,98310.0,0.050826]
[1732273443646,0.050825,98311.0,98310.0,0.050826]
[1732273445342,0.050827,98308.0,98300.0,0.050831]
[1732273445554,0.3608,98308.0,98299.0,0.0307]
[1732273445842,0.050829,98305.0,98304.0,0.050829]
[1732273450041,0.3608,98308.0,98307.0,0.050828]
[1732273450441,0.3608,98308.0,98302.0,0.05083]
[1732273450642,0.3608,98308.0,98299.0,0.0307]
[1732273450643,0.050828,98306.0,98303.0,0.050829]
[1732273451043,0.050828,98306.0,98304.0,0.050829]
[1732273451449,0.3608,98308.0,98304.0,0.050829]
[1732273451747,0.050829,98305.0,98304.0,0.050829]
[1732273452250,0.050831,98302.0,98301.0,0.05083]
[1732273452742,0.050828,98307.0,98306.0,0.050828]
[1732273452949,0.3608,98308.0,98307.0,0.050828]
[1732273453441,0.411627,98308.0,98307.0,0.050828]
[1732273454449,0.3608,98308.0,98307.0,0.050828]
[1732273454855,0.411627,98308.0,98307.0,0.050828]
[1732273457750,0.3608,98308.0,98307.0,0.050828]
[1732273458851,0.30364126,98308.0,98307.0,0.050828]
[1732273461255,0.05199568,98314.0,98313.0,0.050824]
[1732273461554,0.02033754,98321.0,98320.0,0.050821]
[1732273462051,0.02033754,98321.0,98308.0,0.0662]
[1732273462052,0.050823,98317.0,98314.0,0.050824]
[1732273462252,0.02033754,98321.0,98314.0,0.050824]
[1732273462253,0.050823,98316.0,98314.0,0.050824]
[1732273462452,0.050825,98312.0,98309.0,0.081726]
[1732273462752,0.050825,98312.0,98311.0,0.050825]
[1732273464053,0.3608,98319.0,98313.0,0.050824]
[1732273464240,0.15689498,98328.0,98318.0,0.3608]
[1732273464548,0.050821,98319.0,98313.0,0.050824]
[1732273464752,0.050821,98319.0,98309.0,0.0309]
[1732273465141,0.15689498,98328.0,98309.0,0.0309]
[1732273465340,0.050826,98311.0,98309.0,0.0309]
[1732273465543,0.050827,98309.0,98308.0,0.3618]
[1732273465748,0.050827,98309.0,98308.0,0.3608]
[1732273467451,0.09552,98315.0,98308.0,0.3608]
[1732273467651,0.0645,98319.0,98308.0,0.3608]
[1732273467846,0.115322,98319.0,98308.0,0.3608]
[1732273468047,0.050823,98317.0,98308.0,0.3608]
[1732273468547,0.050823,98317.0,98316.0,0.050823]
[1732273469150,0.11612954,98319.0,98308.0,0.3608]
[1732273469346,0.050825,98313.0,98311.0,0.050825]
[1732273469745,0.47692954,98319.0,98308.0,0.3608]
[1732273469957,0.050827,98309.0,98308.0,0.3608]
[1732273471350,0.02032269,98317.0,98311.0,0.050825]
[1732273471351,0.050824,98314.0,98311.0,0.050825]
[1732273471650,0.050825,98312.0,98311.0,0.050825]
[1732273473046,0.09384,98313.0,98312.0,0.050825]
[1732273475454,0.02032269,98317.0,98308.0,0.3608]
[1732273475653,0.02032269,98317.0,98316.0,0.050823]
[1732273475850,0.05082,98322.0,98320.0,0.05082]
[1732273476050,0.00152607,98330.0,98316.0,0.3608]
[1732273476250,0.20727501,98328.0,98327.0,0.050817]
[1732273476450,0.05038003,98328.0,98327.0,0.050817]
[1732273476764,0.00152607,98330.0,98329.0,0.050816]
[1732273477062,0.05289683,98330.0,98329.0,0.050816]
[1732273477248,0.00152607,98330.0,98329.0,0.050816]
[1732273477658,0.050808,98345.0,98329.0,0.355896]
[1732273477863,0.050808,98345.0,98336.0,0.3608]
[1732273478157,0.09384,98348.0,98337.0,0.0633]
[1732273478357,0.14489576,98348.0,98343.0,0.050809]
[1732273478661,0.19570176,98348.0,98344.0,0.050808]
[1732273478863,0.05105576,98348.0,98347.0,0.411607]
[1732273479065,0.0094,98361.0,98352.0,0.050804]
[1732273479248,0.02032271,98357.0,98352.0,0.050804]
[1732273479556,0.050803,98355.0,98354.0,0.050803]
[1732273479953,0.11622414,98365.0,98347.0,0.36176]
[1732273480258,0.0508,98362.0,98347.0,0.3608]
[1732273480457,0.0508,98361.0,98347.0,0.3608]
[1732273480961,0.0508,98360.0,98347.0,0.3608]
[1732273481158,0.09384,98364.0,98356.0,0.050802]
[1732273481662,0.050801,98359.0,98356.0,0.050802]
[1732273482059,0.02031294,98362.0,98350.0,0.11901025]
[1732273482256,0.07111194,98362.0,98361.0,0.0508]
[1732273482454,0.02031294,98362.0,98361.0,0.0508]
[1732273482959,0.05239421,98367.0,98366.0,0.050797]
[1732273483156,0.00152552,98367.0,98366.0,0.050797]
[1732273488868,0.00152552,98367.0,98366.0,0.411597]
[1732273493463,0.05133666,98372.0,98366.0,0.411597]
[1732273493464,0.05133666,98372.0,98371.0,0.050794]
[1732273493668,0.05133666,98372.0,98366.0,0.3608]
[1732273493669,0.02032271,98373.0,98372.0,0.050794]
[1732273494264,0.14428867,98377.0,98376.0,0.050792]
[1732273494464,0.05048867,98377.0,98376.0,0.050792]
[1732273494664,0.050785,98390.0,98376.0,0.3608]
[1732273494968,0.00152503,98392.0,98385.0,0.3608]
[1732273495174,0.00152503,98392.0,98388.0,0.050786]
[1732273495666,0.05183822,98392.0,98388.0,0.050786]
[1732273495874,0.05183822,98392.0,98391.0,0.050784]
[1732273496568,0.1,98400.0,98385.0,0.3608]
[1732273496768,0.1,98400.0,98399.0,0.05078]
[1732273499574,0.1,98400.0,98396.0,0.050782]
[1732273500169,0.050782,98396.0,98394.0,0.3608]
[1732273500372,0.1,98400.0,98386.0,0.0024]
[1732273500669,0.1,98400.0,98385.0,0.3618]
[1732273500670,0.3608,98397.0,98385.0,0.3618]
[1732273500866,0.3608,98397.0,98387.0,0.050786]
[1732273501086,0.0613,98396.0,98387.0,0.050786]
[1732273501267,0.050785,98391.0,98390.0,0.050785]
[1732273501667,0.1531,98396.0,98385.0,0.3608]
[1732273501862,0.050787,98388.0,98387.0,0.050786]
[1732273502388,0.3608,98389.0,98378.0,0.0024]
[1732273502676,0.050785,98390.0,98389.0,0.050782]
[1732273502972,0.050788,98385.0,98384.0,0.050786]
[1732273503367,0.05079,98381.0,98380.0,0.05079]
[1732273504273,0.05079,98381.0,98377.0,0.3608]
[1732273504274,0.050791,98378.0,98377.0,0.3608]
[1732273504569,0.050791,98378.0,98377.0,0.411591]
[1732273504972,0.142588,98385.0,98384.0,0.050786]
[1732273506164,0.050789,98382.0,98381.0,0.050788]
[1732273507568,0.05203547,98382.0,98377.0,0.3608]
[1732273507772,0.050791,98378.0,98377.0,0.3608]
[1732273509566,0.050791,98378.0,98377.0,0.411591]
[1732273510071,0.050791,98378.0,98377.0,0.3608]
[1732273510376,0.050795,98370.0,98369.0,0.411596]
[1732273511274,0.050793,98375.0,98373.0,0.050793]
[1732273512469,0.0827339,98377.0,98369.0,0.3608]
[1732273512679,0.0827339,98377.0,98376.0,0.050792]
[1732273513969,0.09111105,98385.0,98369.0,0.3608]
[1732273514167,0.36132001,98389.0,98388.0,0.050786]
[1732273514372,0.3608,98389.0,98388.0,0.050786]
[1732273514875,0.0313,98399.0,98379.0,0.0945]
[1732273514876,0.18443596,98397.0,98379.0,0.14529]
[1732273515078,0.14310078,98397.0,98379.0,0.14529]
[1732273515279,0.14310078,98397.0,98388.0,0.3608]
[1732273515574,0.05130078,98397.0,98396.0,0.050782]
[1732273516779,0.00152491,98397.0,98396.0,0.411582]
[1732273529180,0.1,98400.0,98399.0,0.05078]
[1732273529791,0.04818889,98400.0,98399.0,0.35566]
[1732273529971,0.08952,98421.0,98412.0,0.050773]
[1732273530174,0.08952,98421.0,98420.0,0.050769]
[1732273530381,0.07129304,98423.0,98421.0,0.050768]
[1732273530382,0.16081304,98423.0,98421.0,0.050768]
[1732273530584,0.16081304,98423.0,98422.0,0.050768]
[1732273531479,0.19055712,98423.0,98422.0,0.050768]
[1732273531683,0.05026912,98423.0,98422.0,0.050768]
[1732273531884,0.00152474,98428.0,98420.0,0.3608]
[1732273532182,0.00152474,98428.0,98427.0,0.050766]
[1732273532482,0.05340792,98428.0,98427.0,0.050766]
[1732273532685,0.00152474,98428.0,98427.0,0.050766]
[1732273534690,0.04953823,98443.0,98442.0,0.050758]
[1732273534988,0.050755,98447.0,98443.0,0.050757]
[1732273535188,0.3608,98451.0,98436.0,0.3608]
[1732273535379,0.3608,98451.0,98450.0,0.050754]
[1732273535575,0.050755,98449.0,98444.0,0.050757]
[1732273535781,0.050757,98445.0,98443.0,0.050757]
[1732273536077,0.411554,98451.0,98437.0,0.05076]
[1732273536293,0.050754,98450.0,98447.0,0.050755]
[1732273536786,0.050754,98450.0,98448.0,0.050754]
[1732273536991,0.050754,98450.0,98449.0,0.050754]
[1732273537782,0.46392127,98451.0,98450.0,0.050754]
[1732273537984,0.46340126,98451.0,98450.0,0.050754]
[1732273539380,0.41264826,98451.0,98450.0,0.050754]
[1732273539583,0.00099662,98454.0,98453.0,0.050752]
[1732273539992,0.05183004,98454.0,98453.0,0.050752]
[1732273540189,0.00099662,98454.0,98453.0,0.050752]
[1732273542093,0.00099662,98454.0,98453.0,0.355472]
[1732273543487,0.00099662,98454.0,98453.0,0.444952]
[1732273547095,0.00099662,98454.0,98453.0,0.49649346]
[1732273547990,0.0094,98467.0,98466.0,0.050745]
[1732273548191,0.050743,98471.0,98468.0,0.050744]
[1732273549589,0.050743,98471.0,98469.0,0.050744]
[1732273549790,0.10105185,98471.0,98469.0,0.050744]
[1732273551195,0.05030885,98471.0,98469.0,0.050744]
[1732273551500,0.0318,98474.0,98470.0,0.050743]
[1732273552091,0.050742,98472.0,98470.0,0.050743]
[1732273553796,0.050742,98472.0,98464.0,0.3608]
[1732273553993,0.050743,98471.0,98464.0,0.3608]
[1732273554198,0.050743,98471.0,98470.0,0.050743]
[1732273556301,0.08370161,98474.0,98464.0,0.3608]
[1732273556302,0.08370161,98474.0,98473.0,0.050742]
[1732273556701,0.13444261,98474.0,98473.0,0.050742]
[1732273558093,0.050746,98468.0,98467.0,0.050744]
[1732273560502,0.09111105,98473.0,98464.0,0.3608]
[1732273560701,0.050743,98470.0,98469.0,0.050743]
[1732273561499,0.050743,98472.0,98471.0,0.050742]
[1732273562192,0.05190161,98474.0,98473.0,0.050742]
[1732273562394,0.09244283,98475.0,98474.0,0.050741]
[1732273562598,0.00152408,98475.0,98474.0,0.050741]
[1732273562806,0.09244394,98475.0,98474.0,0.050741]
[1732273563401,0.00152408,98475.0,98474.0,0.050741]
[1732273563603,0.05177993,98475.0,98474.0,0.050741]
[1732273563804,0.00152408,98475.0,98474.0,0.050741]
[1732273568008,0.0509051,98480.0,98479.0,0.050739]
[1732273568203,0.09096063,98483.0,98482.0,0.050737]
[1732273568404,0.09109078,98485.0,98484.0,0.050736]
[1732273568618,0.09109078,98486.0,98485.0,0.050736]
[1732273568908,0.050731,98494.0,98485.0,0.050736]
[1732273568909,0.15178579,98515.0,98507.0,0.050724]
[1732273569210,0.0024,98520.0,98496.0,0.05073]
[1732273569211,0.050718,98520.0,98519.0,0.3608]
[1732273569511,0.05106297,98520.0,98519.0,0.3608]
[1732273569703,0.050717,98521.0,98519.0,0.3608]
[1732273569902,0.0329,98520.0,98519.0,0.3608]
[1732273570104,0.12234,98520.0,98519.0,0.3608]
[1732273570306,0.12234,98520.0,98513.0,0.3608]
[1732273570307,0.050721,98514.0,98513.0,0.3608]
[1732273572612,0.050721,98514.0,98513.0,0.3108]
[1732273573008,0.140161,98514.0,98513.0,0.3108]
[1732273575205,0.083618,98520.0,98513.0,0.3108]
[1732273575515,0.0329,98520.0,98519.0,0.04986626]
[1732273575714,0.12234,98520.0,98519.0,0.04986626]
[1732273575911,0.0329,98520.0,98519.0,0.04986626]
[1732273576112,0.02027715,98536.0,98535.0,0.05071]
[1732273576313,0.10971715,98536.0,98535.0,0.41151]
[1732273576508,0.05248516,98541.0,98535.0,0.3608]
[1732273576708,0.05248516,98541.0,98540.0,0.050707]
[1732273576908,0.00152269,98541.0,98540.0,0.050707]
[1732273578412,0.00152269,98541.0,98540.0,0.355147]
[1732273579516,0.0894,98559.0,98540.0,0.355147]
[1732273579720,0.0894,98559.0,98558.0,0.3608]
[1732273579915,0.1406667,98559.0,98558.0,0.3608]
[1732273580213,0.0512667,98559.0,98558.0,0.3608]
[1732273580415,0.0894,98564.0,98559.0,0.050698]
[1732273580621,0.0894,98564.0,98560.0,0.050697]
[1732273580804,0.0894,98566.0,98558.0,0.3608]
[1732273581011,0.0894,98567.0,98566.0,0.050694]
[1732273581620,0.0894,98575.0,98570.0,0.050692]
[1732273581812,0.050688,98577.0,98574.0,0.3608]
[1732273582315,0.050689,98576.0,98574.0,0.3608]
[1732273582919,0.30432,98575.0,98574.0,0.3608]
[1732273583715,0.30432,98575.0,98574.0,0.3108]
[1732273584321,0.050689,98576.0,98574.0,0.3108]
[1732273584716,0.0894,98575.0,98574.0,0.3108]
[1732273585925,0.140089,98575.0,98574.0,0.3108]
[1732273586619,0.140049,98575.0,98574.0,0.354762]
[1732273587208,0.08936,98575.0,98574.0,0.354762]
[1732273587915,0.05180707,98576.0,98575.0,0.050689]
[1732273588221,0.08932,98582.0,98575.0,0.050689]
[1732273588424,0.08932,98582.0,98581.0,0.050686]
[1732273589117,0.07204997,98583.0,98582.0,0.050686]
[1732273589317,0.08932,98591.0,98588.0,0.050683]
[1732273589720,0.05220423,98589.0,98588.0,0.050683]
[1732273589921,0.00152223,98589.0,98582.0,0.3608]
[1732273590223,0.050685,98585.0,98584.0,0.050684]
[1732273590820,0.05147837,98589.0,98582.0,0.3608]
[1732273590821,0.050685,98583.0,98582.0,0.3608]
[1732273591716,1.550685,98583.0,98582.0,0.3608]
[1732273592019,0.05069,98574.0,98573.0,0.3608]
[1732273592225,0.14001,98574.0,98573.0,0.3608]
[1732273592436,0.00052001,98583.0,98573.0,0.3608]
[1732273592626,0.05147837,98589.0,98588.0,0.050683]
[1732273592627,0.14079837,98589.0,98588.0,0.050683]
[1732273593111,0.19148037,98589.0,98588.0,0.050683]
[1732273593821,1.60056001,98600.0,98588.0,0.050683]
[1732273594015,0.1,98600.0,98599.0,0.411477]
[1732273594221,0.14084587,98600.0,98599.0,0.411477]
[1732273595616,0.1,98600.0,98599.0,0.411477]
[1732273597924,0.150677,98600.0,98599.0,0.411477]
[1732273598127,0.1,98600.0,98599.0,0.411477]
[1732273598323,0.150677,98600.0,98599.0,0.411477]
[1732273598725,0.150677,98600.0,98599.0,0.3608]
[1732273599029,0.150677,98600.0,98599.0,0.411477]
[1732273599634,0.1,98600.0,98599.0,0.411477]
[1732273601927,0.150677,98600.0,98599.0,0.3608]
[1732273602441,0.1,98600.0,98599.0,0.411477]
[1732273602739,0.150677,98600.0,98599.0,0.411477]
[1732273603122,0.1,98600.0,98599.0,0.411477]
[1732273606134,0.1,98600.0,98599.0,0.3608]
[1732273606336,0.150677,98600.0,98599.0,0.3608]
[1732273606530,0.16388395,98600.0,98599.0,0.3608]
[1732273607733,0.41748695,98600.0,98578.0,0.371]
[1732273607935,0.01320695,98599.0,98584.0,0.36176]
[1732273608139,0.050683,98591.0,98590.0,0.050681]
[1732273608329,0.139963,98591.0,98590.0,0.050681]
[1732273608535,0.050684,98585.0,98584.0,0.411483]
[1732273609934,0.050684,98585.0,98584.0,0.3608]
[1732273610335,0.355004,98585.0,98584.0,0.3608]
[1732273610634,0.36804373,98585.0,98584.0,0.3608]
[1732273612040,0.050687,98579.0,98578.0,0.00104]
[1732273612240,0.050692,98569.0,98567.0,0.0024]
[1732273612436,0.050692,98569.0,98561.0,0.050696]
[1732273612640,0.050692,98569.0,98559.0,0.3608]
[1732273612938,0.050692,98569.0,98563.0,0.050695]
[1732273613637,0.050692,98569.0,98559.0,0.3608]
[1732273613638,0.050692,98569.0,98559.0,0.411497]
[1732273613838,0.050692,98569.0,98559.0,0.3608]
[1732273614030,0.08928,98569.0,98568.0,0.36232167]
[1732273614229,0.050691,98572.0,98571.0,0.050691]
[1732273614836,0.0398419,98576.0,98575.0,0.050689]
[1732273615032,0.139969,98576.0,98575.0,0.050689]
[1732273615940,0.050692,98572.0,98571.0,0.050691]
[1732273617436,0.09153511,98572.0,98571.0,0.050691]
[1732273617942,0.050692,98569.0,98568.0,0.36328167]
[1732273618136,0.050692,98569.0,98568.0,0.36232167]
[1732273618341,0.050692,98569.0,98568.0,0.00152167]
[1732273620832,0.050692,98569.0,98568.0,0.05221467]
[1732273621039,0.06053607,98576.0,98568.0,0.05221467]
[1732273621241,0.05069,98574.0,98573.0,0.050689]
[1732273622338,0.09082985,98574.0,98573.0,0.050689]
[1732273623740,0.09082985,98574.0,98568.0,0.00152167]
[1732273623947,0.09082985,98574.0,98560.0,0.001]
[1732273623948,0.050697,98561.0,98560.0,0.001]
[1732273624142,0.050697,98560.0,98559.0,0.3608]
[1732273626647,0.050697,98560.0,98559.0,0.33647147]
[1732273626648,0.09086529,98560.0,98559.0,0.33647147]
[1732273626847,0.050702,98550.0,98549.0,0.0024]
[1732273627039,0.050708,98539.0,98538.0,0.36568223]
[1732273627236,0.050708,98539.0,98538.0,0.36232223]
[1732273627848,0.0507,98555.0,98554.0,0.0507]
[1732273628046,0.14154,98555.0,98554.0,0.4115]
[1732273629344,0.04097498,98556.0,98555.0,0.0507]
[1732273629550,0.09084,98556.0,98555.0,0.0507]
[1732273629753,0.050696,98562.0,98561.0,0.050697]
[1732273630646,0.141536,98562.0,98561.0,0.050697]
[1732273631246,0.050696,98562.0,98561.0,0.050697]
[1732273631442,0.141536,98562.0,98561.0,0.050697]
[1732273632454,0.02027113,98562.0,98561.0,0.050697]
[1732273633158,0.00152235,98569.0,98568.0,0.050693]
[1732273633447,0.09236235,98569.0,98568.0,0.411493]
[1732273634249,0.05221435,98569.0,98568.0,0.411493]
[1732273634546,0.09236235,98569.0,98568.0,0.411493]
[1732273634754,0.00152235,98569.0,98568.0,0.411493]
[1732273634953,0.14305435,98569.0,98568.0,0.411493]
[1732273635351,0.00152235,98569.0,98568.0,0.411493]